bitfinex-derivatives/quotes_BTCF0:USTF0_20241120
["timestamp","ask_amount","ask_price","bid_price","bid_amount"]
[1732128247882,0.053448,93440.0,93439.0,0.3608]
[1732128250698,0.3608,93458.0,93445.0,0.053445]
[1732128251000,0.6296,93515.0,93439.0,0.3608]
[1732128251001,0.00060001,93466.0,93454.0,0.15249391]
[1732128251200,0.005,93482.0,93454.0,0.15249391]
[1732128251201,0.053432,93469.0,93464.0,0.053435]
[1732128251405,0.053432,93468.0,93464.0,0.36756164]
[1732128251600,0.0763,93485.0,93464.0,0.053435]
[1732128251601,0.053432,93469.0,93464.0,0.053435]
[1732128251790,0.03565629,93478.0,93464.0,0.053435]
[1732128251791,0.053429,93474.0,93464.0,0.053435]
[1732128251995,0.3608,93484.0,93466.0,0.053433]
[1732128252193,0.01100271,93483.0,93473.0,0.3608]
[1732128252496,0.053425,93480.0,93479.0,0.053424]
[1732128253300,0.36136001,93484.0,93473.0,0.3608]
[1732128253301,0.053428,93479.0,93478.0,0.053426]
[1732128253497,0.053429,93474.0,93473.0,0.3608]
[1732128253700,0.00056001,93484.0,93464.0,0.3608]
[1732128253701,0.3608,93484.0,93464.0,0.3608]
[1732128253901,0.3608,93484.0,93464.0,0.414235]
[1732128253902,0.053434,93465.0,93464.0,0.414235]
[1732128254209,0.053434,93465.0,93464.0,0.72765331]
[1732128255102,0.053424,93482.0,93471.0,0.05343]
[1732128255103,0.053425,93481.0,93471.0,0.05343]
[1732128255297,0.01063981,93480.0,93478.0,0.1916732]
[1732128255494,0.053426,93479.0,93478.0,0.2450992]
[1732128255701,0.06406581,93479.0,93478.0,0.053426]
[1732128255895,0.01056816,93483.0,93482.0,0.053424]
[1732128256117,0.06399216,93483.0,93482.0,0.053424]
[1732128256699,0.053424,93482.0,93481.0,0.3608]
[1732128257093,0.01056816,93483.0,93481.0,0.3608]
[1732128257308,0.01056816,93483.0,93482.0,0.053424]
[1732128257607,0.01056816,93483.0,93482.0,0.36662763]
[1732128257807,0.01056816,93483.0,93482.0,0.31320363]
[1732128258196,0.053425,93481.0,93480.0,0.38333536]
[1732128258396,0.414225,93481.0,93480.0,0.02197535]
[1732128258604,0.414225,93481.0,93463.0,0.3608]
[1732128258605,0.053431,93472.0,93463.0,0.3608]
[1732128258816,0.053435,93464.0,93463.0,0.3608]
[1732128261704,0.02954836,93473.0,93463.0,0.3608]
[1732128261909,0.05343,93473.0,93472.0,0.05343]
[1732128262206,0.02891819,93484.0,93469.0,0.15249391]
[1732128262399,0.053412,93504.0,93469.0,0.15249391]
[1732128262400,0.053415,93498.0,93471.0,0.3608]
[1732128262600,0.01719775,93497.0,93471.0,0.3608]
[1732128262909,0.053423,93485.0,93484.0,0.053423]
[1732128263300,0.053417,93496.0,93487.0,0.053421]
[1732128263509,0.053417,93496.0,93481.0,0.3608]
[1732128263510,0.01074859,93497.0,93486.0,0.053422]
[1732128263704,0.01074859,93497.0,93481.0,0.3608]
[1732128263705,0.01074859,93497.0,93491.0,0.053418]
[1732128263899,0.053417,93495.0,93494.0,0.053417]
[1732128264410,0.05342,93490.0,93489.0,0.41422]
[1732128265018,0.05342,93490.0,93489.0,0.3608]
[1732128271408,0.053424,93482.0,93481.0,0.3608]
[1732128272711,0.053424,93482.0,93470.0,0.442]
[1732128272919,0.053431,93471.0,93470.0,0.495431]
[1732128273102,0.053431,93471.0,93470.0,0.442]
[1732128277004,0.053431,93471.0,93470.0,0.76116704]
[1732128277513,0.053431,93471.0,93470.0,0.442]
[1732128278519,0.053431,93471.0,93470.0,0.3608]
[1732128278902,0.053431,93471.0,93470.0,0.68019674]
[1732128279114,0.053431,93471.0,93470.0,0.3608]
[1732128280814,0.053431,93471.0,93468.0,0.31972396]
[1732128280815,0.053432,93469.0,93468.0,0.31972396]
[1732128281108,0.053432,93468.0,93467.0,0.31972396]
[1732128281308,0.7216,93468.0,93464.0,0.31972396]
[1732128281508,0.7216,93468.0,93440.0,0.51181666]
[1732128281509,0.053435,93464.0,93460.0,0.31972396]
[1732128281712,0.053435,93464.0,93440.0,0.00132]
[1732128281713,0.053437,93460.0,93448.0,0.38313314]
[1732128281910,0.053447,93442.0,93441.0,0.35949314]
[1732128282117,0.053447,93442.0,93440.0,0.00132]
[1732128282118,0.053448,93441.0,93440.0,0.00132]
[1732128282321,0.3608,93442.0,93425.0,0.3608]
[1732128282322,0.053456,93426.0,93425.0,0.3608]
[1732128283413,0.053456,93426.0,93425.0,0.76059462]
[1732128283619,0.053456,93426.0,93425.0,0.3608]
[1732128285122,0.0825212,93426.0,93425.0,0.3608]
[1732128285319,0.0825212,93426.0,93425.0,0.414257]
[1732128285320,0.0290652,93426.0,93425.0,0.414257]
[1732128285518,0.053453,93432.0,93425.0,0.3608]
[1732128285724,0.053453,93432.0,93431.0,0.053453]
[1732128286819,0.05345,93438.0,93427.0,0.053456]
[1732128287124,0.053451,93436.0,93435.0,0.25496525]
[1732128287616,0.08237558,93448.0,93431.0,0.053453]
[1732128287617,0.053444,93447.0,93431.0,0.053453]
[1732128287818,0.053441,93453.0,93437.0,0.25489988]
[1732128288028,0.053445,93447.0,93437.0,0.25489988]
[1732128288229,0.053441,93453.0,93437.0,0.25489988]
[1732128288230,0.053449,93438.0,93437.0,0.25489988]
[1732128288412,0.05345,93437.0,93436.0,0.25489988]
[1732128288724,0.053451,93436.0,93435.0,0.25489988]
[1732128288925,0.0213842,93450.0,93425.0,0.3608]
[1732128289127,0.053451,93436.0,93435.0,0.053451]
[1732128289325,0.053451,93435.0,93434.0,0.25485013]
[1732128289711,0.414247,93443.0,93429.0,0.25485013]
[1732128289712,0.053452,93434.0,93429.0,0.25485013]
[1732128289922,0.3608,93441.0,93425.0,0.3608]
[1732128290118,0.3608,93441.0,93427.0,0.2548097]
[1732128290119,0.053455,93428.0,93427.0,0.2548097]
[1732128290623,0.053451,93436.0,93427.0,0.25474049]
[1732128291123,0.053455,93428.0,93427.0,0.25474049]
[1732128291518,0.053456,93426.0,93425.0,0.61554049]
[1732128292527,0.053456,93426.0,93425.0,0.3608]
[1732128294311,0.05346,93420.0,93419.0,0.00012519]
[1732128300921,0.05346,93420.0,93397.0,0.25463259]
[1732128300922,0.053465,93411.0,93397.0,0.25463259]
[1732128301138,0.053463,93414.0,93395.0,0.25463259]
[1732128301139,0.3608,93403.0,93395.0,0.25463259]
[1732128301333,0.053477,93390.0,93389.0,0.30810959]
[1732128301526,0.053477,93389.0,93388.0,0.0835]
[1732128302027,0.05357996,93389.0,93380.0,0.25463259]
[1732128302217,0.00010296,93389.0,93377.0,0.61543259]
[1732128302533,0.053482,93381.0,93377.0,0.414284]
[1732128302727,0.00010296,93389.0,93377.0,0.414284]
[1732128302728,0.00010296,93389.0,93380.0,0.15249391]
[1732128302923,0.3608,93432.0,93388.0,0.3608]
[1732128302924,0.053464,93412.0,93388.0,0.3608]
[1732128303236,0.053463,93414.0,93405.0,0.3608]
[1732128303426,0.15249391,93429.0,93405.0,0.3608]
[1732128303629,0.053462,93417.0,93410.0,0.053465]
[1732128303828,6.014e-05,93416.0,93410.0,0.053465]
[1732128304026,0.00146829,93413.0,93410.0,0.053465]
[1732128304335,0.00146829,93413.0,93406.0,0.053468]
[1732128304522,0.00146829,93413.0,93405.0,0.3608]
[1732128304723,0.053467,93408.0,93405.0,0.3608]
[1732128304925,0.053467,93408.0,93405.0,0.414268]
[1732128305125,0.00146829,93407.0,93405.0,0.414268]
[1732128305434,0.05493529,93407.0,93405.0,0.3608]
[1732128305735,0.053471,93401.0,93400.0,0.25463259]
[1732128306028,0.053471,93401.0,93400.0,0.05240523]
[1732128306029,0.20596491,93401.0,93400.0,0.05240523]
[1732128306225,0.5286332,93401.0,93400.0,0.05240523]
[1732128306428,0.4751622,93401.0,93398.0,0.05240523]
[1732128306622,0.053483,93380.0,93379.0,0.3608]
[1732128307337,0.00146829,93380.0,93379.0,0.3608]
[1732128307531,0.053473,93398.0,93381.0,0.053482]
[1732128307732,0.05347,93403.0,93387.0,0.51329391]
[1732128307937,0.3608,93411.0,93388.0,0.1996]
[1732128307938,0.15249391,93410.0,93388.0,0.1996]
[1732128308130,0.053471,93400.0,93388.0,0.1996]
[1732128308332,0.15249391,93410.0,93388.0,0.1996]
[1732128308538,0.053472,93398.0,93394.0,0.053474]
[1732128308844,0.15249391,93410.0,93388.0,0.1996]
[1732128309028,0.053475,93393.0,93389.0,0.053477]
[1732128309227,0.053476,93392.0,93389.0,0.053477]
[1732128309740,0.15249391,93410.0,93388.0,0.1996]
[1732128309932,0.053469,93405.0,93390.0,0.15249391]
[1732128310240,0.02894064,93411.0,93391.0,0.0793]
[1732128310428,0.053477,93390.0,93388.0,0.1996]
[1732128310733,0.053478,93388.0,93387.0,0.3608]
[1732128310928,0.053478,93388.0,93374.0,0.58175831]
[1732128310929,0.053483,93380.0,93379.0,0.3608]
[1732128312651,0.3608,93383.0,93363.0,0.10533372]
[1732128312832,0.053489,93369.0,93363.0,0.10533372]
[1732128313143,0.053489,93369.0,93367.0,0.05349]
[1732128313329,0.053479,93386.0,93369.0,0.053489]
[1732128313536,0.01096166,93385.0,93370.0,0.053488]
[1732128313727,0.01096166,93384.0,93370.0,0.053488]
[1732128313928,0.053475,93393.0,93363.0,0.10533372]
[1732128313929,0.01096166,93383.0,93363.0,0.10533372]
[1732128314241,0.053488,93370.0,93363.0,0.10533372]
[1732128315732,0.053488,93370.0,93363.0,0.15882572]
[1732128316345,0.053489,93369.0,93363.0,0.15882572]
[1732128316750,0.053489,93369.0,93363.0,0.10533372]
[1732128317739,0.053489,93369.0,93365.0,0.053491]
[1732128317930,0.053489,93369.0,93363.0,0.10533372]
[1732128318629,0.053489,93369.0,93364.0,0.053492]
[1732128318838,0.36086014,93382.0,93369.0,0.053489]
[1732128319033,0.02864703,93381.0,93369.0,0.053489]
[1732128319236,0.053489,93369.0,93363.0,0.15882572]
[1732128319934,0.053489,93369.0,93364.0,0.053492]
[1732128321745,0.053489,93369.0,93363.0,0.10533372]
[1732128322145,0.053489,93369.0,93363.0,0.15882572]
[1732128322349,0.39621109,93382.0,93363.0,0.10533372]
[1732128322652,0.01093652,93381.0,93364.0,0.3608]
[1732128322948,0.053489,93369.0,93364.0,0.3608]
[1732128325141,0.053489,93369.0,93363.0,0.02853372]
[1732128325142,0.05349,93367.0,93363.0,0.02853372]
[1732128325341,0.0644163,93367.0,93363.0,0.02853372]
[1732128326151,0.0644163,93367.0,93356.0,0.3608]
[1732128326650,0.0644163,93367.0,93365.0,0.3608]
[1732128326859,0.0644163,93367.0,93356.0,0.3608]
[1732128326860,0.00056001,93370.0,93366.0,0.88820664]
[1732128327054,0.03541109,93382.0,93369.0,0.3608]
[1732128327240,0.03541109,93382.0,93381.0,0.3608]
[1732128327557,0.08889209,93382.0,93381.0,0.3608]
[1732128327760,6.014e-05,93382.0,93381.0,0.414282]
[1732128327950,0.10267587,93406.0,93381.0,0.3608]
[1732128328152,0.053479,93387.0,93383.0,0.053481]
[1732128328346,0.05348,93385.0,93383.0,0.053481]
[1732128328547,0.053477,93390.0,93381.0,0.3608]
[1732128328747,0.3608,93403.0,93389.0,0.3608]
[1732128328953,0.053477,93390.0,93389.0,0.3608]
[1732128329658,0.053474,93396.0,93393.0,0.053475]
[1732128329851,0.053471,93400.0,93389.0,0.3608]
[1732128330059,0.0176306,93405.0,93389.0,0.51341386]
[1732128330360,0.01758952,93404.0,93389.0,0.51341386]
[1732128330542,0.0176306,93405.0,93401.0,0.053471]
[1732128330744,0.053469,93403.0,93402.0,0.0822]
[1732128331653,0.053476,93391.0,93390.0,0.3608]
[1732128331844,0.053476,93391.0,93380.0,0.3624]
[1732128332158,0.3608,93393.0,93379.0,0.31912839]
[1732128332159,0.053483,93380.0,93379.0,0.31912839]
[1732128332558,0.07132477,93380.0,93367.0,0.3608]
[1732128332854,0.053489,93368.0,93367.0,0.3608]
[1732128334670,0.053485,93376.0,93358.0,0.0764]
[1732128334671,0.05349,93367.0,93358.0,0.0764]
[1732128335165,0.05349,93367.0,93358.0,0.129895]
[1732128335455,0.05349,93367.0,93358.0,0.0764]
[1732128336960,0.053485,93375.0,93372.0,0.053487]
[1732128337148,0.03477438,93376.0,93367.0,0.0801]
[1732128337355,0.053488,93371.0,93367.0,0.0801]
[1732128338262,0.053488,93371.0,93367.0,0.39922839]
[1732128338571,0.05349,93367.0,93365.0,0.31912839]
[1732128338866,0.05349,93367.0,93358.0,0.274]
[1732128338867,0.05349,93367.0,93346.0,0.34829329]
[1732128339056,0.3608,93351.0,93346.0,0.34829329]
[1732128339251,0.3608,93351.0,93342.0,0.40288579]
[1732128339252,0.053502,93347.0,93342.0,0.053504]
[1732128339571,0.15261386,93356.0,93339.0,0.0837]
[1732128339863,0.00010173,93355.0,93339.0,0.137206]
[1732128340055,0.00010173,93355.0,93340.0,0.053505]
[1732128340453,0.053498,93354.0,93341.0,0.053505]
[1732128340653,0.053502,93347.0,93341.0,0.053505]
[1732128341052,0.0110914,93346.0,93341.0,0.053505]
[1732128341258,0.3608,93349.0,93341.0,0.053505]
[1732128341447,0.053504,93343.0,93339.0,0.0837]
[1732128341651,0.3608,93349.0,93339.0,0.0837]
[1732128341652,0.053506,93340.0,93339.0,0.0837]
[1732128342048,0.00010173,93355.0,93331.0,0.0016]
[1732128342049,0.053504,93343.0,93331.0,0.0016]
[1732128342263,0.00010173,93355.0,93340.0,0.3608]
[1732128342264,0.0535,93351.0,93340.0,0.3608]
[1732128342458,0.00010173,93355.0,93354.0,0.053497]
[1732128342660,0.00010173,93355.0,93340.0,0.3608]
[1732128342661,0.3608,93357.0,93340.0,0.3608]
[1732128342962,0.414296,93357.0,93348.0,0.3608]
[1732128343165,0.03653694,93360.0,93355.0,0.053497]
[1732128343361,0.3608,93379.0,93349.0,0.27574]
[1732128343573,0.01759282,93378.0,93349.0,0.27574]
[1732128343753,0.3608,93379.0,93357.0,0.053495]
[1732128343754,0.3608,93371.0,93357.0,0.053495]
[1732128343958,0.053494,93360.0,93358.0,0.0799]
[1732128344261,0.053487,93373.0,93359.0,0.053495]
[1732128344462,0.053487,93373.0,93349.0,0.27574]
[1732128344463,0.15261386,93366.0,93349.0,0.27574]
[1732128344670,0.0535,93350.0,93349.0,0.27574]
[1732128344965,0.0535,93350.0,93349.0,0.0781]
[1732128345853,0.3608,93361.0,93332.0,0.02140011]
[1732128345854,0.053505,93343.0,93342.0,0.053504]
[1732128346053,0.3608,93353.0,93335.0,0.19764]
[1732128346358,0.053505,93341.0,93335.0,0.19764]
[1732128346757,0.053505,93341.0,93338.0,0.053507]
[1732128346952,0.053505,93341.0,93330.0,0.15271844]
[1732128347156,0.053511,93331.0,93330.0,0.00010458]
[1732128347367,0.053497,93356.0,93330.0,0.08130458]
[1732128347559,0.03508927,93356.0,93332.0,0.3608]
[1732128347760,0.05351,93333.0,93332.0,0.3608]
[1732128348359,0.05351,93333.0,93332.0,0.41431]
[1732128348962,0.05351,93333.0,93332.0,0.3608]
[1732128349263,0.05351,93333.0,93330.0,0.16490458]
[1732128349264,0.053511,93331.0,93330.0,0.00010458]
[1732128353267,0.32144,93330.0,93284.0,0.38220495]
[1732128353486,0.053532,93294.0,93290.0,0.0804]
[1732128353862,0.3608,93296.0,93290.0,0.0804]
[1732128354165,0.3608,93296.0,93275.0,0.19768]
[1732128354166,0.51341386,93296.0,93275.0,0.19768]
[1732128354371,0.053539,93283.0,93275.0,0.19768]
[1732128354575,0.3608,93285.0,93275.0,0.19768]
[1732128354871,0.05354,93280.0,93275.0,0.19768]
[1732128355078,0.3608,93276.0,93275.0,0.19768]
[1732128355873,0.36090458,93276.0,93275.0,0.19768]
[1732128356270,0.053545,93272.0,93271.0,0.0804]
[1732128356471,0.053544,93273.0,93271.0,0.0804]
[1732128356863,0.414344,93273.0,93271.0,0.0804]
[1732128357066,0.053545,93271.0,93270.0,0.00012]
[1732128357265,0.3608,93273.0,93256.0,0.00012921]
[1732128357464,0.3608,93257.0,93256.0,0.00012921]
[1732128357667,0.414353,93257.0,93256.0,0.00012921]
[1732128357881,0.3608,93257.0,93256.0,0.00012921]
[1732128358072,0.03489963,93273.0,93256.0,0.00012921]
[1732128358073,0.053553,93258.0,93256.0,0.00012921]
[1732128358272,0.15261386,93257.0,93256.0,0.00012921]
[1732128358477,0.15261386,93257.0,93256.0,1e-08]
[1732128359066,0.47429386,93257.0,93256.0,1e-08]
[1732128359269,0.26526335,93257.0,93215.0,0.02141719]
[1732128359470,0.3608,93238.0,93229.0,0.053569]
[1732128359981,0.3608,93238.0,93236.0,0.053565]
[1732128360183,0.3608,93258.0,93237.0,0.19776]
[1732128360486,0.3608,93270.0,93268.0,0.053547]
[1732128360785,0.3,93273.0,93272.0,0.053545]
[1732128361089,0.043,93273.0,93272.0,0.053545]
[1732128361276,0.043,93273.0,93269.0,0.0775]
[1732128361587,0.043,93273.0,93255.0,0.19776]
[1732128361588,0.053549,93265.0,93255.0,0.19776]
[1732128361767,0.3608,93268.0,93247.0,0.02141719]
[1732128361971,0.053555,93254.0,93250.0,0.053557]
[1732128362183,0.053555,93254.0,93251.0,0.053556]
[1732128362381,0.053556,93252.0,93248.0,0.00152]
[1732128362581,0.51341386,93258.0,93247.0,0.053559]
[1732128363286,0.053563,93240.0,93239.0,0.0016]
[1732128363472,0.053564,93238.0,93221.0,0.3]
[1732128363784,0.51341386,93240.0,93221.0,0.3]
[1732128363966,0.053563,93239.0,93225.0,0.053571]
[1732128364169,0.3608,93257.0,93251.0,0.053556]
[1732128364476,0.15261386,93267.0,93251.0,0.053556]
[1732128364672,0.15261386,93258.0,93247.0,0.257]
[1732128364871,0.053557,93251.0,93250.0,0.053557]
[1732128365068,0.053558,93248.0,93247.0,0.257]
[1732128365775,0.053547,93267.0,93249.0,0.053558]
[1732128365776,0.053558,93250.0,93249.0,0.053558]
[1732128365983,0.05356,93245.0,93244.0,0.05356]
[1732128366181,0.15261386,93258.0,93237.0,0.45489813]
[1732128366383,0.053561,93243.0,93242.0,0.053562]
[1732128366779,0.053561,93243.0,93242.0,0.310562]
[1732128366980,0.15261386,93258.0,93242.0,0.257]
[1732128367186,0.3608,93273.0,93243.0,0.15261386]
[1732128367381,0.3608,93273.0,93242.0,0.257]
[1732128367382,0.053558,93250.0,93249.0,0.053557]
[1732128367578,0.3608,93254.0,93242.0,0.6178]
[1732128367788,0.053559,93248.0,93242.0,0.257]
[1732128368084,0.053559,93248.0,93246.0,0.053559]
[1732128368289,0.053559,93248.0,93246.0,0.251239]
[1732128368589,0.053556,93253.0,93237.0,9.813e-05]
[1732128368778,0.053564,93239.0,93237.0,0.25709813]
[1732128369179,0.3608,93254.0,93237.0,0.25709813]
[1732128369180,0.053564,93238.0,93237.0,0.25709813]
[1732128369382,0.053562,93243.0,93242.0,0.053561]
[1732128369580,0.03537018,93260.0,93244.0,0.05356]
[1732128369782,0.3608,93282.0,93275.0,0.053543]
[1732128369783,0.005,93281.0,93275.0,0.053543]
[1732128369984,0.053542,93277.0,93275.0,0.251223]
[1732128370184,0.3608,93282.0,93263.0,0.05355]
[1732128370185,0.3608,93279.0,93263.0,0.05355]
[1732128370379,0.053535,93289.0,93250.0,0.51273386]
[1732128370380,0.3608,93269.0,93250.0,0.51273386]
[1732128370582,0.05355,93263.0,93251.0,0.19768]
[1732128370983,0.053547,93268.0,93251.0,0.22162982]
[1732128371287,0.3608,93260.0,93251.0,0.22162982]
[1732128371588,0.053554,93255.0,93254.0,0.053554]
[1732128371890,0.3608,93260.0,93249.0,0.3608]
[1732128372188,0.3608,93260.0,93258.0,0.053552]
[1732128372189,0.414351,93260.0,93258.0,0.053552]
[1732128372401,0.053552,93259.0,93258.0,0.053552]
[1732128373892,0.414357,93250.0,93249.0,0.22162982]
[1732128374691,0.05356,93245.0,93243.0,0.053561]
[1732128374894,0.0845,93249.0,93243.0,0.053561]
[1732128375085,0.053564,93238.0,93237.0,9.813e-05]
[1732128375285,0.053564,93238.0,93237.0,0.05366313]
[1732128375696,0.053564,93238.0,93237.0,9.813e-05]
[1732128376388,0.053571,93226.0,93225.0,0.00160838]
[1732128376691,0.414371,93226.0,93225.0,0.00160838]
[1732128377393,0.3608,93226.0,93200.0,0.1]
[1732128377593,0.3608,93193.0,93182.0,0.24698715]
[1732128377794,0.15261386,93194.0,93182.0,0.24698715]
[1732128377795,0.053596,93183.0,93182.0,0.11543543]
[1732128377996,0.15261386,93188.0,93150.0,0.95790972]
[1732128378199,0.15261386,93188.0,93152.0,0.0812]
[1732128378395,0.3608,93172.0,93171.0,0.66541369]
[1732128379103,0.3608,93184.0,93171.0,0.66541369]
[1732128379295,0.3608,93176.0,93171.0,0.86313369]
[1732128379701,0.3608,93176.0,93174.0,0.0536]
[1732128380101,0.3608,93175.0,93171.0,0.86465369]
[1732128380408,0.3608,93175.0,93172.0,0.01675084]
[1732128380791,0.053601,93174.0,93173.0,0.01675084]
[1732128381406,0.053601,93174.0,93173.0,0.24131326]
[1732128381608,0.3608,93184.0,93173.0,0.24131326]
[1732128381803,0.0536,93176.0,93174.0,0.04355188]
[1732128382001,0.414401,93175.0,93173.0,0.251361]
[1732128382196,0.3608,93175.0,93174.0,0.04355395]
[1732128382399,0.3608,93184.0,93173.0,0.41938982]
[1732128382604,0.3608,93184.0,93183.0,0.053596]
[1732128382912,0.3608,93209.0,93204.0,0.053583]
[1732128383095,0.3724,93220.0,93204.0,0.053583]
[1732128383096,0.3608,93212.0,93205.0,0.01675061]
[1732128383292,0.3608,93212.0,93206.0,0.01675061]
[1732128383496,0.3608,93212.0,93207.0,0.01675061]
[1732128383713,0.3608,93212.0,93208.0,0.01675061]
[1732128383910,0.05358,93210.0,93209.0,0.01675061]
[1732128384214,0.00011471,93211.0,93209.0,0.01675061]
[1732128384418,0.00011471,93211.0,93210.0,0.07033061]
[1732128385317,0.00011471,93211.0,93210.0,0.01675061]
[1732128386804,0.3608,93244.0,93210.0,0.33859061]
[1732128387004,0.3608,93244.0,93209.0,0.3608]
[1732128387005,0.053562,93241.0,93221.0,0.053574]
[1732128387207,0.3608,93244.0,93223.0,0.053572]
[1732128387410,0.053563,93240.0,93232.0,0.053567]
[1732128387614,0.053563,93240.0,93233.0,0.24133785]
[1732128387818,8.97e-05,93239.0,93234.0,0.04353785]
[1732128388018,8.97e-05,93239.0,93235.0,0.09710385]
[1732128388211,8.97e-05,93239.0,93236.0,0.04353785]
[1732128388408,8.97e-05,93239.0,93233.0,0.1978]
[1732128388409,8.97e-05,93239.0,93237.0,0.04353785]
[1732128388717,8.97e-05,93239.0,93238.0,0.04353785]
[1732128389923,0.0536527,93239.0,93238.0,0.04353785]
[1732128390309,0.053565,93237.0,93236.0,0.1978]
[1732128390515,0.053565,93237.0,93219.0,0.36028]
[1732128390516,0.053569,93229.0,93219.0,0.36028]
[1732128390712,0.053569,93229.0,93220.0,0.21454134]
[1732128390919,8.97e-05,93239.0,93236.0,0.053565]
[1732128391125,8.97e-05,93239.0,93237.0,0.01775487]
[1732128391315,8.97e-05,93239.0,93237.0,0.00101353]
[1732128392018,0.0536537,93239.0,93237.0,0.00101353]
[1732128392316,8.97e-05,93239.0,93237.0,0.05457753]
[1732128393115,0.0536537,93239.0,93238.0,0.19776]
[1732128393413,8.97e-05,93239.0,93238.0,0.19696]
[1732128393613,8.97e-05,93239.0,93238.0,0.19776]
[1732128395709,8.97e-05,93239.0,93238.0,0.41938982]
[1732128396822,0.053552,93260.0,93258.0,0.053552]
[1732128397126,0.40056702,93271.0,93245.0,0.15261386]
[1732128397315,0.3608,93254.0,93244.0,0.3608]
[1732128397521,0.05356,93245.0,93244.0,0.19764]
[1732128398619,0.3608,93246.0,93244.0,0.251201]
[1732128398825,0.05356,93245.0,93244.0,0.19764]
[1732128399024,0.053556,93253.0,93251.0,0.053556]
[1732128399327,0.3608,93255.0,93244.0,0.19764]
[1732128399520,0.05356,93246.0,93244.0,0.19764]
[1732128400511,0.3608,93247.0,93237.0,0.00101353]
[1732128400721,0.414364,93238.0,93237.0,0.00101353]
[1732128401329,0.414364,93238.0,93237.0,0.22264335]
[1732128401516,0.053564,93238.0,93237.0,0.22264335]
[1732128401831,0.414364,93239.0,93237.0,0.42028335]
[1732128402327,0.3608,93239.0,93237.0,0.47384735]
[1732128403527,0.414364,93239.0,93237.0,0.47384735]
[1732128404111,0.414364,93239.0,93237.0,0.22264335]
[1732128404316,0.414364,93239.0,93238.0,0.19764]
[1732128405130,0.414364,93239.0,93237.0,0.00101353]
[1732128406018,0.414364,93239.0,93237.0,0.22264335]
[1732128406019,0.3608,93239.0,93237.0,0.22264335]
[1732128406329,0.3608,93239.0,93237.0,0.27620835]
[1732128406522,0.3608,93239.0,93237.0,0.42882221]
[1732128407232,0.053563,93241.0,93237.0,0.22264335]
[1732128407434,0.053563,93241.0,93239.0,0.053563]
[1732128407629,0.3608,93253.0,93238.0,0.053564]
[1732128407829,0.053558,93249.0,93248.0,0.053557]
[1732128408021,0.052758,93249.0,93248.0,0.251197]
[1732128408630,0.3608,93253.0,93251.0,0.053556]
[1732128408826,0.053558,93249.0,93248.0,0.41926982]
[1732128409131,0.414358,93249.0,93248.0,0.19764]
[1732128409336,0.053564,93238.0,93237.0,0.00101353]
[1732128409541,0.414364,93238.0,93237.0,0.22264335]
[1732128410329,0.414364,93238.0,93237.0,0.00101353]
[1732128410529,0.053564,93238.0,93237.0,0.00101353]
[1732128411432,0.053564,93238.0,93237.0,0.22264335]
[1732128411637,0.414364,93238.0,93237.0,0.22264335]
[1732128412021,0.414364,93238.0,93237.0,0.47838536]
[1732128412429,0.414364,93238.0,93237.0,0.02101353]
[1732128413633,0.053564,93238.0,93237.0,0.02101353]
[1732128413831,0.414364,93238.0,93237.0,0.02101353]
[1732128415133,0.053564,93238.0,93237.0,0.24264335]
[1732128415334,0.414364,93238.0,93237.0,0.24264335]
[1732128415633,0.3608,93246.0,93237.0,0.7434975]
[1732128415931,0.053561,93244.0,93243.0,0.38465173]
[1732128416133,0.053564,93238.0,93237.0,0.24264335]
[1732128416434,0.053564,93238.0,93237.0,0.02101353]
[1732128416435,0.414364,93238.0,93237.0,0.02101353]
[1732128416749,0.414364,93238.0,93237.0,0.15341301]
[1732128417037,0.414364,93238.0,93208.0,0.00152]
[1732128417038,0.053581,93209.0,93208.0,0.00152]
[1732128417222,0.053589,93195.0,93194.0,0.0822]
[1732128417839,0.3608,93209.0,93194.0,0.0822]
[1732128418037,0.053575,93219.0,93202.0,0.15261386]
[1732128418238,0.053579,93213.0,93208.0,0.053581]
[1732128418435,0.053579,93213.0,93202.0,0.15261386]
[1732128418634,0.053579,93213.0,93194.0,0.0822]
[1732128418938,0.053579,93213.0,93209.0,0.05358]
[1732128419139,0.053579,93212.0,93210.0,0.0832]
[1732128419943,0.3608,93211.0,93210.0,0.0832]
[1732128420130,0.053589,93195.0,93194.0,0.443]
[1732128420433,0.3608,93211.0,93194.0,0.64064]
[1732128420634,0.3608,93211.0,93203.0,0.053584]
[1732128420835,0.053584,93204.0,93203.0,0.053584]
[1732128421432,0.053588,93197.0,93195.0,0.0793]
[1732128421828,0.053588,93197.0,93191.0,1.5]
[1732128421829,0.053591,93192.0,93191.0,0.00156]
[1732128422128,0.053595,93184.0,93183.0,0.00012639]
[1732128422841,0.3608,93189.0,93183.0,0.00012639]
[1732128423043,0.3608,93189.0,93187.0,0.053593]
[1732128423338,0.3608,93189.0,93183.0,0.00012639]
[1732128423643,0.053595,93184.0,93183.0,0.00012639]
[1732128423834,0.053595,93184.0,93183.0,0.19780639]
[1732128424743,0.053595,93184.0,93183.0,0.00012639]
[1732128425245,0.3608,93201.0,93188.0,0.053592]
[1732128425445,0.053592,93190.0,93188.0,0.053592]
[1732128426537,0.3608,93201.0,93188.0,0.053592]
[1732128426744,0.3608,93201.0,93192.0,0.15261386]
[1732128426941,0.2314,93201.0,93192.0,0.15261386]
[1732128427135,0.05358,93211.0,93209.0,0.05358]
[1732128427331,0.053568,93232.0,93210.0,0.19736]
[1732128427332,0.07500514,93232.0,93210.0,0.19736]
[1732128427536,0.053577,93217.0,93216.0,0.053577]
[1732128427738,0.053579,93212.0,93210.0,0.19736]
[1732128427936,0.053584,93204.0,93203.0,0.053584]
[1732128428147,0.053584,93204.0,93203.0,0.250944]
[1732128428943,0.3608,93217.0,93203.0,0.19736]
[1732128429139,0.053581,93209.0,93207.0,0.053581]
[1732128429441,0.053581,93208.0,93203.0,0.19736]
[1732128429639,0.053582,93208.0,93206.0,0.053582]